Cogmind - Beta 15 @@@ ROGUE MODE // 2025.05.21 @ 20:44:05 Player: Olafz Result: Destroyed by Y-54 Guardian with Flak Gun Performance ------------- Evolutions (0) 0 Regions Visited (4) 800 Robots Destroyed (5) 25 Value Destroyed (80) 80 Prototype IDs (2) 40 Alien Tech Used (0) 0 Bonus (0) 0 TOTAL SCORE: 945 Bonus ------- None Cogmind --------- Core Integrity 0/250 Matter 145/300 Energy 200/200 System Corruption 0% Temperature Cool (19) Movement Rolling (120) Ox1 Location -7/Recycling Parts ------- > --- POWER (1) -------- Subdweller Power Source > --- PROPULSION (2) --- Subdweller Monowheel > --- UTILITY (2) ------ Medium Storage Unit Sensor Array > --- WEAPON (2) ------- Subdweller Machine Gun Battle Cannon > --- INVENTORY (10) --- Subdweller Power Source Makeshift Leg Subdweller Monowheel Subdweller Monowheel Medium Storage Unit Scrap Shield Riot Gun Subdweller Machine Gun Scrap Shield Fragment (46) Peak State ------------ > --- POWER ------------ Subdweller Power Source > --- PROPULSION ------- Wheel Subdweller Monowheel > --- UTILITY ---------- Medium Storage Unit Sensor Array > --- WEAPON ----------- Subdweller Machine Gun Battle Cannon > --- INVENTORY -------- Subdweller Power Source Subdweller Monowheel Subdweller Monowheel Medium Storage Unit Scrap Shield Riot Gun Subdweller Machine Gun Scrap Shield Fragment Scrap Shield Fragment [Rating: 13] Favorites ----------- Power Ion Engine Engine Ion Engine Propulsion Aluminum Leg Leg Aluminum Leg Wheel Wheel Utility Sensor Array Device Sensor Array Storage Medium Storage Unit Weapon Light Assault Rifle Ballistic Gun Light Assault Rifle Ballistic Cannon Battle Cannon Build | -11 -10 -10 -10 -7 ------- Run | Yrd Mat Min Sub Rec Slots Evolved . | . . . . . Power . | . . . . . Propulsion . | . . . . . Utility . | . . . . . Weapon . | . . . . . Parts Attached 17 | 6 2 1 7 1 Power 3 | 1 . 1 1 . Engine 3 | 1 . 1 1 . Core . | . . . . . Reactor . | . . . . . Propulsion 4 | 2 . . 2 . Treads . | . . . . . Leg 2 | 2 . . . . Wheel 2 | . . . 2 . Hover . | . . . . . Flight . | . . . . . Utility 4 | 1 2 . 1 . Device 2 | . 1 . 1 . Storage 2 | 1 1 . . . Processor . | . . . . . Hackware . | . . . . . Protection . | . . . . . Artifact . | . . . . . Weapon 6 | 2 . . 3 1 Energy Gun . | . . . . . Energy Cannon . | . . . . . Ballistic Gun 5 | 2 . . 2 1 Ballistic Cannon 1 | . . . 1 . Launcher . | . . . . . Special Weapon . | . . . . . Impact Weapon . | . . . . . Slashing Weapon . | . . . . . Piercing Weapon . | . . . . . Special Melee Weapon . | . . . . . Unidentified Prototypes . | . . . . . Parts Lost 8 | . 1 . 6 1 Power 2 | . 1 . 1 . Propulsion 3 | . . . 2 1 Utility . | . . . . . Weapon 3 | . . . 3 . Highest Loss Streak 3 | . 1 . 3 1 To Critical Strikes 2 | . . . 2 . Average Backups 5 | . 4 5 6 8 Power . | . 1 . . 1 Propulsion 1 | . 2 2 1 3 Utility 2 | . 1 3 2 2 Weapon . | . . . 1 2 Tool/Special . | . . . . . Unused Backups 8 | . . . 1 7 Power 1 | . . . . 1 Propulsion 4 | . . . 1 3 Utility 2 | . . . . 2 Weapon 1 | . . . . 1 Tool/Special . | . . . . . Average Slot Usage (%) 97 | . 93 100 95 100 Engine 13 | . 12 14 13 14 Leg 15 | . 28 28 7 . Wheel 10 | . . . 17 28 Device 13 | . 9 14 14 14 Storage 14 | . 14 14 14 14 Ballistic Gun 22 | . 28 28 18 14 Ballistic Cannon 5 | . . . 8 14 Peak Build Rating 13 | 6 7 7 13 13 Average Rating 8 | 4 6 7 10 13 On Entrance 6 | . 6 6 7 13 Naked Turns . | . . . . . Heaviest Build 23 | 13 19 19 23 23 Greatest Support 30 | 20 20 20 30 30 Greatest Overweight (x) 2 | 2 . . 1 . Average Overweight (x) . | . . . . . Largest Inventory Capacity 10 | 8 10 10 10 10 Average Capacity 9 | 6 9 10 10 10 Most Carried 10 | 3 6 5 10 10 Average Carried 7 | 1 4 5 9 10 Final Capacity 10 | 8 10 10 10 10 Final Carried 10 | 3 6 5 10 10 Class Distribution -------------------- 100% | Mutant Dominant Class ---------------- Mutant | -10/Materials Mutant | -10/Mines Mutant | -10/Subcaves Mutant | -7/Recycling Resources | -11 -10 -10 -10 -7 ----------- Run | Yrd Mat Min Sub Rec Matter Collected 457 | 62 . 98 297 . Remotely . | . . . . . Salvage Created 75 | . . . 75 . Parts 11 | . . . 11 . Haulers Intercepted . | . . . . . Recyclers Shooed . | . . . . . Parts Field Recycled . | . . . . . Retrieved Matter . | . . . . . Parts Self-Destructed 19 | . . . 19 . Prevented . | . . . . . Kills | -11 -10 -10 -10 -7 ------- Run | Yrd Mat Min Sub Rec Combat Hostiles Destroyed 5 | . . . 5 . Guns 2 | . . . 2 . Cannons 3 | . . . 3 . Classes Destroyed 2 | . . . 2 . Swarmer 4 | . . . 4 . Subdweller 1 | . . . 1 . Best Kill Streak 3 | . . . 3 . Combat Bots Only 3 | . . . 3 . Max Kills in Single Turn 1 | . . . 1 . Gunslinging . | . . . . . Exploded . | . . . . . Melee . | . . . . . Uniques/NPCs Destroyed . | . . . . . Combat | -11 -10 -10 -10 -7 -------- Run | Yrd Mat Min Sub Rec Hostile Shots Fired 132 | . 26 . 88 18 Missed 46 | . 11 . 26 9 Hits 86 | . 15 . 62 9 Projectile 86 | . 15 . 62 9 Critical Strikes 3 | . . . 3 . Damage Taken 1049 | . 138 . 830 81 Core 250 | . 14 . 202 34 Absorbed by Shields . | . . . . . Core Remaining (%) 100 | 100 . . . . Volleys Fired 51 | . 3 . 47 1 Largest 2 | . 2 . 2 2 Hottest 63 | . 40 . 63 63 Shots Fired 95 | . 6 . 87 2 Gun 62 | . 6 . 55 1 Cannon 33 | . . . 32 1 Launcher . | . . . . . Special . | . . . . . Kinetic 95 | . 6 . 87 2 Thermal . | . . . . . Explosive . | . . . . . Electromagnetic . | . . . . . Robot Hit Streak 8 | . 4 . 8 2 Robot Miss Streak 6 | . 2 . 6 1 Penetration Max . | . . . . . Secondary Targets 1 | . . . 1 . Max Gunslinging Chain 1 | . . . 1 . Shots Hit Robots 29 | . 4 . 24 1 Core Hits 10 | . 1 . 9 . Critical Kills . | . . . . . Critical Parts Destroyed 1 | . 1 . . . Critical Strikes 2 | . 1 . 1 . Destroy 1 | . 1 . . . Blast 1 | . . . 1 . Melee Attacks . | . . . . . Impact . | . . . . . Slashing . | . . . . . Piercing . | . . . . . Sneak Attacks . | . . . . . Combat Hostiles . | . . . . . Follow-up Attacks . | . . . . . Damage Inflicted 407 | . 45 . 337 25 Guns 256 | . 45 . 186 25 Cannons 151 | . . . 151 . Explosions . | . . . . . Melee . | . . . . . Ramming . | . . . . . Kinetic 407 | . 45 . 337 25 Thermal . | . . . . . Explosive . | . . . . . Electromagnetic . | . . . . . Impact . | . . . . . Slashing . | . . . . . Piercing . | . . . . . Highest Corruption . | . . . . . Average Corruption . | . . . . . Corruption Purged . | . . . . . Corruption Blocked . | . . . . . Overload Shots . | . . . . . Overflow Damage . | . . . . . Projectiles . | . . . . . Explosions . | . . . . . Melee . | . . . . . Knockbacks 2 | . . . 2 . Impact . | . . . . . Kinetic 2 | . . . 2 . Secondary . | . . . . . Self-Inflicted Damage . | . . . . . Shots . | . . . . . Rammed . | . . . . . Targets Rammed . | . . . . . Kicked . | . . . . . Crushed . | . . . . . Highest Temperature 9 | . 9 . . 1 Average Temperature 6 | . 9 . . 1 Received Heat Transfer 216 | . 36 . 150 30 Siege Activations . | . . . . . Martial Activations . | . . . . . Shielding Activations . | . . . . . Robots Disrupted . | . . . . . Combat Hostiles . | . . . . . Robots Corrupted . | . . . . . Combat Hostiles . | . . . . . Parts Fried . | . . . . . Impact Corruptions . | . . . . . Robots Melted . | . . . . . Combat Hostiles . | . . . . . Parts Melted . | . . . . . Heat Transferred . | . . . . . Parts Sabotaged . | . . . . . Parts Stolen . | . . . . . Parts Stripped . | . . . . . Power Chain Reactions . | . . . . . Alert | -11 -10 -10 -10 -7 ------- Run | Yrd Mat Min Sub Rec Maximum Alert Level . | . . . . . Low Security (%) 100 | 100 100 100 . 100 Level 1 . | . . . . . Level 2 . | . . . . . Level 3 . | . . . . . Level 4 . | . . . . . Level 5 . | . . . . . High Security . | . . . . . Max Security . | . . . . . Peak Influence 13 | . 13 . . 3 Initial 3 | . . . . 3 Average . | . . . . 1 Influence Increases 129 | . 13 . 115 1 Destroy 0b10 Robot/C 80 | . . . 80 . Destroy Leader 20 | . . . 20 . Successful Hack 13 | . 13 . . . Destroy Structure 1 | . . . . 1 Lose Combat Pursuer 15 | . . . 15 . Influence Decreases 129 | . 13 . 108 8 Entered New Map 4 | . . . . 4 Time Decay 104 | . 13 . 88 3 Lost Part 21 | . . . 20 1 Squads Dispatched . | . . . . . Investigation . | . . . . . Extermination . | . . . . . Reinforcement . | . . . . . Assault . | . . . . . Garrison . | . . . . . Intercept . | . . . . . Searches Triggered . | . . . . . Construction Impeded . | . . . . . Haulers Reinforced . | . . . . . Active Scanning Responses . | . . . . . Cargo Convoy Interrupts . | . . . . . Stealth | -11 -10 -10 -10 -7 --------- Run | Yrd Mat Min Sub Rec Distress Signals . | . . . . . Communications Jammed . | . . . . . Distress Signals . | . . . . . Times Spotted 30 | . 5 . 21 4 Peak Tracking Total 5 | . 5 . 5 3 Tactical Retreats 1 | . . . 1 . Traps | -11 -10 -10 -10 -7 ------- Run | Yrd Mat Min Sub Rec Traps Triggered . | . . . . . Indirectly . | . . . . . Trap Hack Attempts . | . . . . . Triggered . | . . . . . Disarmed . | . . . . . Reprogrammed . | . . . . . Reused . | . . . . . Traps Extracted . | . . . . . Installed . | . . . . . Triggered . | . . . . . Machines | -11 -10 -10 -10 -7 ---------- Run | Yrd Mat Min Sub Rec Machines Disabled 1 | . . . 1 . Max in Single Turn 1 | . . . 1 . Machines Repaired . | . . . . . Machines Dismantled . | . . . . . Machines Sabotaged . | . . . . . Overloaded Fab Kills . | . . . . . Hacking | -11 -10 -10 -10 -7 --------- Run | Yrd Mat Min Sub Rec Machines Accessed 1 | . 1 . . . Terminals 1 | . 1 . . . Fabricators . | . . . . . Repair Stations . | . . . . . Recycling Units . | . . . . . Scanalyzers . | . . . . . Garrison Access . | . . . . . Total Hacks 4 | . 4 . . . Successful 3 | . 3 . . . Failed 1 | . 1 . . . Catastrophic . | . . . . . Database Lockouts . | . . . . . Manual 2 | . 2 . . . Terminals 4 | . 4 . . . Fabricators . | . . . . . Repair Stations . | . . . . . Recycling Units . | . . . . . Scanalyzers . | . . . . . Garrison Access . | . . . . . Terminal Hacks 2 | . 2 . . . Prototype ID Bank 1 | . 1 . . . Branch Access Points 1 | . 1 . . . Fabricator Hacks . | . . . . . Repair Station Hacks . | . . . . . Recycling Unit Hacks . | . . . . . Scanalyzer . | . . . . . Garrison Access Hacks . | . . . . . Unauthorized Hacks 1 | . 1 . . . Terminals 1 | . 1 . . . Botnet 1 | . 1 . . . Fabricators . | . . . . . Repair Stations . | . . . . . Recycling Units . | . . . . . Scanalyzers . | . . . . . Garrison Access . | . . . . . Data Cores Recovered . | . . . . . Used . | . . . . . Hacking Detections 1 | . 1 . . . Full Trace Events . | . . . . . Feedback Events . | . . . . . Feedback Blocked . | . . . . . Robot Schematics Acquired . | . . . . . Robots Built . | . . . . . Authchips . | . . . . . Time . | . . . . . Total Robot Build Rating . | . . . . . Part Schematics Acquired . | . . . . . Parts Built . | . . . . . Authchips . | . . . . . Time . | . . . . . Total Part Build Rating . | . . . . . Parts Repaired . | . . . . . Time . | . . . . . Parts Recycled . | . . . . . Recycled Matter . | . . . . . Retrieved Matter . | . . . . . Retrieved Components . | . . . . . Parts Scanalyzed . | . . . . . Part Schematics Acquired . | . . . . . Parts Damaged . | . . . . . Bothacking | -11 -10 -10 -10 -7 ------------ Run | Yrd Mat Min Sub Rec Used RIF Installer . | . . . . . Robots Hacked . | . . . . . Non-combat . | . . . . . Combat . | . . . . . Robot Hacks Applied . | . . . . . Relay Couplers Released . | . . . . . Fabnet Peak Effective % . | . . . . . Robots Rewired . | . . . . . Allies Hacked . | . . . . . Hacks Repelled . | . . . . . Allies | -11 -10 -10 -10 -7 -------- Run | Yrd Mat Min Sub Rec Total Allies . | . . . . . Largest Group . | . . . . . Highest-Rated Group . | . . . . . Highest-Rated Ally . | . . . . . Total Orders . | . . . . . Ally Attacks . | . . . . . Total Damage . | . . . . . Kills . | . . . . . Allies Corrupted . | . . . . . Allies Melted . | . . . . . Intel | -11 -10 -10 -10 -7 ------- Run | Yrd Mat Min Sub Rec Active Infowar (turns) 1079 | . 57 383 594 45 Sensors 1079 | . 57 383 594 45 Robot Analysis Total . | . . . . . Derelict Logs Recovered 3 | . . 2 1 . Drone Launches . | . . . . . Drone Recoveries . | . . . . . Exploration | -11 -10 -10 -10 -7 ------------- Run | Yrd Mat Min Sub Rec Turns Passed 1162 | 63 77 383 594 45 Spaces Moved 833 | 40 49 286 415 43 Core 12 | 12 . . . . Treads . | . . . . . Legs 468 | 28 49 286 105 . Wheels 353 | . . . 310 43 Hover . | . . . . . Flight . | . . . . . Fastest Speed 50 | 50 120 120 95 95 Average Speed 109 | 116 120 120 101 95 Slowest Speed 190 | 150 120 120 190 95 Overloaded Moves . | . . . . . Propulsion Burnouts . | . . . . . Robots Hopped . | . . . . . Potential Cave-ins 15 | . . . 15 . Cave-ins Triggered . | . . . . . Exploration Rate (%) 27 | 4 15 72 29 18 Regions Visited 4 Branch Regions 3 Pre-discovered Areas . | . . . . . Known Exits Taken 1 | . 1 . . . Unknown Exits Taken 3 | 1 . 1 1 . Scrap Searched 2 | . . 1 1 . Spaces Dug 20 | . . . 20 . Terrain Destroyed 22 | . . . 21 1 Melee . | . . . . . Projectile 22 | . . . 21 1 AOE . | . . . . . Terrain Rammed . | . . . . . Walls Destroyed . | . . . . . Machines Disabled . | . . . . . Actions | -11 -10 -10 -10 -7 --------- Run | Yrd Mat Min Sub Rec Total 988 | 53 61 326 502 46 Wait 70 | 5 6 40 18 1 Move 829 | 39 48 285 414 43 Hop . | . . . . . Pick Up 16 | 3 2 . 11 . Fast Attach 11 | 6 1 . 4 . Attach 3 | . . 1 2 . Detach . | . . . . . Swap 3 | . 1 . 1 1 Drop 5 | . . . 5 . Fire 51 | . 3 . 47 1 Melee . | . . . . . Ram . | . . . . . Kick . | . . . . . Crush . | . . . . . Escape Stasis . | . . . . . Rewire . | . . . . . Trap . | . . . . . Miscellaneous . | . . . . . Route ------- -11/Scrapyard -10/Materials -10/Mines -10/Subcaves -7/Recycling History --------- Turn | Location | Event 18 | -11/Scrapyard | Discovered new exit (range 14) 64 | -11/Scrapyard | Entered Materials 102 | -10/Materials | Identified exit to Mines 141 | -10/Materials | Entered Mines 190 | -10/Mines | Learned Materials trap positions 266 | -10/Mines | Assembled infested the area 314 | -10/Mines | Build established: Mutant 410 | -10/Mines | Learned Materials stockpile data 521 | -10/Mines | Discovered new exit (range 4) 524 | -10/Mines | Entered Subcaves 525 | -10/Subcaves | Approached by a straggling Scientist 705 | -10/Subcaves | Learned location of 1 exit from Materials 719 | -10/Subcaves | Lost 3 parts (2n1w) 737 | -10/Subcaves | Ambushed by swarm of Subdwellers 737 | -10/Subcaves | Ambushed by Subdwellers from Twisted Machinery 740 | -10/Subcaves | Ambushed by Subdwellers from Twisted Machinery 746 | -10/Subcaves | Core integrity fell below 50% 751 | -10/Subcaves | Core integrity fell below 20% 778 | -10/Subcaves | Lost 3 parts (1p2w) 859 | -10/Subcaves | Shifting Twisted Machinery released Riot Gun 866 | -10/Subcaves | Shifting Twisted Machinery released Sub. Optics 995 | -10/Subcaves | A swath of the cavern ceiling suddenly collapsed 1092 | -10/Subcaves | Discovered new exit (range 15) 1118 | -10/Subcaves | Entered Recycling 1119 | -7/Recycling | Met a Zionite searching for Scraptown 1119 | -7/Recycling | Joined Warlord attack on 0b10 via Recycling 1163 | -7/Recycling | Destroyed by Y-54 Guardian with Flak Gun Last Messages --------------- direction, then we hit them from behind. Then God M*bzzt*... right, can't talk about that." AK-0DA(z): "I've heard great things about that place, but almost no one seems to know where to find it, only that you access it somewhere from Recycling here." AK-0DA(z): "Anyway I've been here searching too long already, time to slink back to the caves before I'm caught. You'd best do the same." The unstable cave ceiling collapses. PW-T8O(g) destroyed. 3R-OR3(g) destroyed. Terminal disabled. RI-1XN(d) destroyed. W7-2RZ(g) destroyed. G-47 Trooper destroyed. R-06 Scavenger collects Imp. Terrain Scanner. Y-54 Guardian springs to life. P-60 Hacker destroyed. R-06 Scavenger collects Com. Wheel. Y-54 Guardian suffers critical hit (Burn). Wheel destroyed. Map ----- +----------------------------------------------------+ | ?????????????????????????????????????????????????? | | ?????????????????????????????????????????????????? | | ?????????????????????????????????????????????????? | | ?????????????????????????????????????????????????? | | ?????????????????????????????????????????????????? | | ?????????????????????????????????????????????????? | | ?????????????????????????????????????????????????? | | ?????????????????????????????????????????????????? | | ?????????????????????????????????????????????????? | | ?????????????????????????????????????????????????? | | ?????????????????????????????????????????????????? | | ?????????????????????????????????????????????????? | | ?????????????????????????????????????????????????? | | ?????????????????????????????????????????????????? | | ?????????????????????????????????????????????????? | | ?????????????????????????????????????????????????? | | ?????????????????????????????????????????????????? | | ?????????????????????????????????????????????????? | | ????????????##?##????????????????????????????????? | | ???????????? %% ##?????????????????????????????? | | ???????????? r =% ????????????????????????????? | | ??????????? %=l% # ######??????????????????????? | | ??????????? %%%%g% g #####??????????????????? | | ?????????? % [*g! ##?????????????????? | | ?????????? g =%! Y#?????????????????? | | ??????????%tr % r [ @ ;#?????????????????? | | ?????????? =! ! %! ############???????? | | ?????????? ki =%= # #???????? | | ???????????##### "" """ #""" #???????? | | ???????????????? "T """ #"Y #???????? | | ????????????????#"" """ #""" #???????? | | ????##########??#"" # " #???????? | | ????# = / = ?# # """ ????????? | | ????# % ! ?# """ + """ ????????? | | ????# ! # """ # """ ????????? | | ????# ! # """ ### "" #???????? | | ????# ] + #?# """ #???????? | | ????# ! ! =# #?# ""?????????? | | ????# # #########?# """ ????????? | | ????###########?# #?????????# " ????????? | | ??????????#""???# #?????????# #???????? | | ??? ###T###"Y"### ########??# ????????? | | ?? #???###########???????? | | ?? #?????????????????????? | | ?? #?????????????????????? | | ????####"Y"##########+######?????????????????????? | | ????????"???????????" "??????????????????????????? | | ????????????????????" "??????????????????????????? | | ???????????????????"" ""?????????????????????????? | | ??????????????????? ?????????????????????????? | +----------------------------------------------------+ Best States ------------- Heat Dissipation 25 Energy Generation 15 Energy Capacity 250 Matter Stores 295 Matter Capacity 300 Sight Range 16 Robot Scan Range 14 Terrain Scan Density 10 Evasion (%) 55 Item Schematics ----------------- None Robot Schematics ------------------ None Fabricated ------------ Nothing Repaired ---------- Nothing Alien Tech Used ----------------- None Achievements -------------- None Challenges ------------ None Game ------ Seed SwordClaymoresAutohacker Manual? 0 Play Time 00:12:36 Cumulative 263.7 hours Start 2025.05.21 @ 20:32:37 End 2025.05.21 @ 20:44:05 Sessions 1 Manual Loads 0 Difficulty Rogue Special Mode None Game No. 499 Rogue 497 Adventurer 2 Explorer 0 Win Type - Total 15 Types 11/0/1/2/1/0/0/0/0/0 Lore% 72 Gallery% 63 Achievement% 58 Wizard Run 0 Options --------- Layout 0 ASCII 0 Keyboard 1 Movement Numpad Keybinds 1 Fullscreen 2 Font 24/Smallcaps Map View 76x50 Zoom Use 0% Tactical HUD 1 Map Filters NONE Filters NONE Steam 1 RUN: 25e854c3-744d-485c-80a6-d27ae6752a5f